fUST/lending_fUST_20260421
["ID","MTS","AMOUNT","RATE_DAILY","PERIOD"]
[420940170,1776761439802,-341.27806298,0.00012376,2]
[420940172,1776761439811,-1256.71921547,0.00012398,2]
[420940174,1776761439821,-572.903,0.00012398,2]
[420940176,1776761439831,-500.0,0.00012473,2]
[420940177,1776761439840,-541.02116242,0.00012473,2]
[420940178,1776761439851,-500.92757713,0.00012473,2]
[420940179,1776761439860,-500.97949159,0.00012473,2]
[420940180,1776761439870,-501.87854479,0.00012473,2]
[420940181,1776761439880,-504.14884301,0.00012473,2]
[420940182,1776761439889,-265.97196215,0.00012473,2]
[420940183,1776761439898,-500.0,0.00012473,2]
[420940184,1776761439908,-500.70082902,0.00012473,2]
[420940185,1776761439918,-502.21085237,0.00012473,2]
[420940186,1776761439928,-502.69739404,0.00012473,2]
[420940187,1776761439938,-500.0,0.00012473,2]
[420940188,1776761439947,-500.0,0.00012473,2]
[420940189,1776761439956,-500.0,0.00012473,2]
[420940190,1776761439965,-500.0,0.00012473,2]
[420940191,1776761439975,-505.23793997,0.00012473,2]
[420940192,1776761439984,-500.0,0.00012473,2]
[420940193,1776761439993,-151.0,0.00012476,2]
[420940194,1776761440003,-151.0,0.00012476,2]
[420940195,1776761440012,-151.0,0.00012476,2]
[420940196,1776761440021,-151.0,0.00012476,2]
[420940197,1776761440032,-151.0,0.00012476,2]
[420940198,1776761440041,-151.0,0.00012476,2]
[420940199,1776761440050,-194.17105143,0.00012479,2]
[420940200,1776761440060,-445.202766,0.00012479,2]
[420940201,1776761440070,-537.6845,0.00012479,2]
[420940202,1776761440079,-500.0,0.00012479,2]
[420940203,1776761440088,-500.0,0.00012479,2]
[420940204,1776761440098,-500.0,0.00012479,2]
[420940205,1776761440107,-500.0,0.00012479,2]
[420940206,1776761440116,-983.26978443,0.00012479,2]
[420940207,1776761440125,-428.71500046,0.00012479,2]
[420940208,1776761440135,-537.6845,0.00012479,2]
[420940209,1776761440144,-2150.738,0.00012479,2]
[420940210,1776761440153,-205.56158115,0.00012479,2]
[420940211,1776761440163,-2478.53841185,0.00012498,2]
[420940212,1776761440172,-162.0,0.000125,2]
[420940213,1776761440181,-557.5788265,0.00012534,2]
[420940214,1776761440190,-578.20924308,0.00012589,2]
[420940215,1776761440200,-160.0,0.000126,2]
[420940216,1776761440209,-313.18185926,0.00012633,2]
[420940217,1776761440218,-6543.13836,0.00012642,2]
[420940218,1776761440227,-41415.4596179,0.00012642,2]
[420940219,1776761440236,-889.3938231,0.00012642,2]
[420940220,1776761440245,-151.0,0.00012642,2]
[420940221,1776761440255,-151.0,0.00012642,2]
[420940222,1776761440264,-151.0,0.00012642,2]
[420940223,1776761440274,-151.0,0.00012642,2]
[420940224,1776761440283,-152.398332,0.00012642,2]
[420940225,1776761440292,-599.60298507,0.00012644,2]
[420940226,1776761440301,-500.0,0.00012648,2]
[420940227,1776761440310,-621.78829552,0.00012699,2]
[420940228,1776761440319,-644.79446246,0.00012754,2]
[420940229,1776761440328,-2550.0,0.00012777,2]
[420940230,1776761440337,-3140.07174087,0.00012798,2]
[420940231,1776761440346,-632.0,0.00012799,2]
[420940232,1776761440355,-668.65185757,0.00012809,2]
[420940233,1776761440364,-693.3919763,0.00012864,2]
[420940234,1776761440373,-301.2842873,0.00012869,2]
[420940235,1776761440382,-153.6598509,0.00012877,2]
[420940236,1776761440391,-424.0,0.00012877,2]
[420940237,1776761440400,-424.0,0.00012877,2]
[420940238,1776761440409,-424.0,0.00012877,2]
[420940240,1776761440418,-424.0,0.00012877,2]
[420940241,1776761440428,-424.0,0.00012877,2]
[420940242,1776761440437,-424.0,0.00012877,2]
[420940243,1776761440445,-424.0,0.00012877,2]
[420940244,1776761440454,-424.0,0.00012877,2]
[420940245,1776761440463,-424.0,0.00012877,2]
[420940246,1776761440472,-424.0,0.00012877,2]
[420940247,1776761440482,-424.0,0.00012877,2]
[420940248,1776761440491,-424.0,0.00012877,2]
[420940249,1776761440500,-424.0,0.00012877,2]
[420940250,1776761440509,-424.0,0.00012877,2]
[420940251,1776761440518,-424.0,0.00012877,2]
[420940252,1776761440528,-424.0,0.00012877,2]
[420940253,1776761440537,-424.0,0.00012877,2]
[420940254,1776761440546,-424.0,0.00012877,2]
[420940255,1776761440555,-424.0,0.00012877,2]
[420940256,1776761440565,-424.0,0.00012877,2]
[420940257,1776761440574,-424.0,0.00012877,2]
[420940258,1776761440583,-424.0,0.00012877,2]
[420940259,1776761440592,-424.0,0.00012877,2]
[420940260,1776761440601,-429.05658181,0.00012877,2]
[420940261,1776761440611,-3337.64563442,0.00012898,2]
[420940262,1776761440620,-587.0,0.00012911,2]
[420940263,1776761440629,-719.04747942,0.00012919,2]
[420940264,1776761440639,-300.0,0.0001293,2]
[420940265,1776761440648,-300.0,0.0001293,2]
[420940266,1776761440657,-300.0,0.0001293,2]
[420940267,1776761440666,-300.0,0.0001293,2]
[420940268,1776761440676,-300.0,0.0001293,2]
[420940269,1776761440685,-300.0,0.0001293,2]
[420940270,1776761440694,-300.0,0.0001293,2]
[420940271,1776761440704,-300.0,0.0001293,2]
[420940272,1776761440713,-300.0,0.0001293,2]
[420940273,1776761440722,-300.0,0.0001293,2]
[420940274,1776761440732,-300.0,0.0001293,2]
[420940275,1776761440741,-300.0,0.0001293,2]
[420940276,1776761440750,-300.0,0.0001293,2]
[420940277,1776761440760,-300.0,0.0001293,2]
[420940278,1776761440769,-300.0,0.0001293,2]
[420940279,1776761440778,-600.0,0.0001293,2]
[420940280,1776761440788,-151.0,0.0001293,2]
[420940282,1776761440797,-151.0,0.0001293,2]
[420940283,1776761440806,-151.0,0.0001293,2]
[420940284,1776761440815,-154.394444,0.0001293,2]
[420940285,1776761440824,-551134.55474487,0.00012936,2]
[420940286,1776761440996,-1000.0,0.00012936,2]
[420940287,1776761441192,-30264.67691428,0.00012936,2]
[420940444,1776761446334,-5000.0,0.00012801,10]
[420940446,1776761446343,-1999.16763074,0.00012936,2]
[420940449,1776761446355,-209996.00049357,0.00012936,2]
[420940547,1776761452104,500.98112163,0.0002605,120]
[420940548,1776761564423,159.47482622,0.0002605,120]
[420940549,1776761564644,249.85072128,0.0002605,120]
[420940550,1776761564710,159.47482622,0.0002605,120]
[420940551,1776761564976,249.85072128,0.0002605,120]
[420940552,1776761565030,159.47482622,0.0002605,120]
[420940553,1776761565292,249.85072128,0.0002605,120]
[420940554,1776761565343,159.47482622,0.0002605,120]
[420940555,1776761565615,249.85072128,0.0002605,120]
[420940556,1776761565662,159.47482622,0.0002605,120]
[420940557,1776761565960,249.85072128,0.0002605,120]
[420940558,1776761566012,159.47482622,0.0002605,120]
[420940559,1776761566255,249.85072128,0.0002605,120]
[420940560,1776761566303,159.47482622,0.0002605,120]
[420940561,1776761566564,249.85072128,0.0002605,120]
[420940562,1776761566615,159.47482622,0.0002605,120]
[420940563,1776761566869,249.85072128,0.0002605,120]
[420940564,1776761666111,500.0,0.0002605,120]
[420940565,1776761666333,500.0,0.0002605,120]
[420940566,1776761666602,632.72523242,0.0002605,120]
[420940567,1776761742121,20214.75984765,0.0002593,120]
[420940568,1776761794954,424.8635794,0.0002593,120]
[420940569,1776762061815,-5000.0,7.524e-05,10]
[420940570,1776762061836,-5000.0,7.6e-05,2]
[420940571,1776762061848,-69.05747332,7.6e-05,2]
[420940624,1776762093222,296.62197707,9.7e-05,2]
[420940631,1776762107783,-246.32054961,0.00011017,2]
[420940639,1776762137314,-296.62197707,0.00010907,10]
[420940668,1776762632116,-3702.33834764,5.096e-05,2]
[420940669,1776762632131,-1297.66165236,5.096e-05,2]
[420940670,1776762632142,-1128.14665092,5.147e-05,2]
[420940671,1776762632170,-399.86526697,5.147e-05,2]
[420940673,1776762632184,-859.11990399,5.147e-05,2]
[420940716,1776762644627,-2426.32407564,5.147e-05,2]
[420940717,1776762644637,-256.83655101,5.173e-05,2]
[420940718,1776762644646,-164.4249442,5.199e-05,2]
[420940719,1776762644655,-300.0,5.275e-05,2]
[420940720,1776762644664,-300.0,5.275e-05,2]
[420940721,1776762644673,-300.0,5.275e-05,2]
[420940722,1776762644683,-300.0,5.275e-05,2]
[420940723,1776762644692,-300.0,5.275e-05,2]
[420940724,1776762644701,-300.0,5.275e-05,2]
[420940725,1776762644711,-300.0,5.275e-05,2]
[420940726,1776762644720,-300.0,5.275e-05,2]
[420940727,1776762644730,-300.0,5.275e-05,2]
[420940728,1776762644739,-300.0,5.275e-05,2]
[420940729,1776762644749,-300.0,5.275e-05,2]
[420940731,1776762644758,-300.0,5.275e-05,2]
[420940732,1776762644768,-300.0,5.275e-05,2]
[420940733,1776762644777,-300.0,5.275e-05,2]
[420940734,1776762644786,-300.0,5.275e-05,2]
[420940735,1776762644795,-303.06713019,7.173e-05,2]
[420940736,1776762644804,-349.29770937,9.173e-05,2]
[420940737,1776762644813,-300.0,0.00010687,2]
[420940738,1776762644823,-300.0,0.00010687,2]
[420940739,1776762644831,-277.0,0.00010687,2]
[420940740,1776762644841,-300.0,0.0001113,2]
[420940741,1776762644850,-395.52828856,0.00011173,2]
[420940742,1776762644859,-4556.7688925,0.00011173,2]
[420940743,1776762644869,-600.0,0.00011395,2]
[420940744,1776762644879,-304.06774329,0.00012149,2]
[420940745,1776762644888,-378.4903707,0.00012149,2]
[420940746,1776762644897,-500.0,0.00012149,2]
[420940747,1776762644906,-620.38536002,0.00012149,2]
[420940748,1776762644915,-60981.13831385,0.0001215,2]
[420940749,1776762644925,-7029.74315475,0.00012163,2]
[420940750,1776762644934,-502.78239733,0.00012173,2]
[420940751,1776762644944,-270.05491774,0.00012173,2]
[420940752,1776762644953,-163.86541355,0.00012173,2]
[420940753,1776762644962,-1079.88512039,0.00012173,2]
[420940754,1776762644972,-1079.88512039,0.00012173,2]
[420940755,1776762644981,-1079.88512039,0.00012173,2]
[420940756,1776762644990,-1079.88512039,0.00012173,2]
[420940757,1776762645000,-1079.88512039,0.00012173,2]
[420940758,1776762645009,-1079.88512039,0.00012173,2]
[420940759,1776762645019,-1079.88512039,0.00012173,2]
[420940760,1776762645028,-1079.88512039,0.00012173,2]
[420940761,1776762645037,-1079.88512039,0.00012173,2]
[420940762,1776762645046,-1079.88512039,0.00012173,2]
[420940763,1776762645056,-1079.88512039,0.00012173,2]
[420940764,1776762645065,-1079.88512039,0.00012173,2]
[420940765,1776762645074,-1079.88512039,0.00012173,2]
[420940766,1776762645083,-1079.88512039,0.00012173,2]
[420940767,1776762645093,-1187.87363245,0.00012173,2]
[420940768,1776762645102,-1187.87363245,0.00012173,2]
[420940769,1776762645112,-1187.87363245,0.00012173,2]
[420940770,1776762645122,-1187.87363245,0.00012173,2]
[420940771,1776762645131,-1187.87363245,0.00012173,2]
[420940772,1776762645141,-8353.96468959,0.00012174,2]
[420940777,1776762646528,-16817.66113642,0.00012174,2]
[420940785,1776762710398,5000.0,0.00025929,120]
[420940786,1776762786370,5000.0,0.00025929,120]
[420940789,1776763248603,290.01668781,0.00024,120]
[420940790,1776763443387,20000.0,0.00024658,120]
[420940791,1776763464868,500.0,0.00025939,120]
[420940792,1776763465098,500.0,0.00025939,120]
[420940793,1776763465325,500.0,0.00025939,120]
[420940794,1776763465563,500.0,0.00025939,120]
[420940795,1776763465788,500.0,0.00025939,120]
[420940796,1776763466011,500.0,0.00025939,120]
[420940797,1776763466443,500.0,0.00025939,120]
[420940798,1776763466835,500.0,0.00025939,120]
[420940799,1776763466905,500.0,0.00025939,120]
[420940800,1776763467147,500.0,0.00025939,120]
[420940801,1776763467386,500.0,0.00025939,120]
[420940802,1776763467624,500.0,0.00025939,120]
[420940803,1776763467857,358.3897948,0.00025939,120]
[420940804,1776763473963,60000.0,0.00024658,120]
[420940838,1776763832295,-809.83634132,9.437e-05,10]
[420940843,1776763832352,-4190.16365868,9.437e-05,10]
[420940845,1776763832363,-251.14195743,9.532e-05,2]
[420940847,1776763832372,-555.0,9.628e-05,2]
[420940848,1776763832381,-1200.0,9.723e-05,2]
[420940850,1776763832391,-300.0,9.724e-05,2]
[420940852,1776763832399,-249.0,9.724e-05,2]
[420940853,1776763832408,-300.0,9.724e-05,2]
[420940855,1776763832417,-3514.6513855,9.725e-05,2]
[420940857,1776763832427,-1800.6796363,9.941e-05,2]
[420940859,1776763832435,-4015.0281444,0.00010134,2]
[420940861,1776763832444,-300.0,0.00010336,2]
[420940863,1776763832453,-300.0,0.00010336,2]
[420940865,1776763832463,-300.0,0.00010336,2]
[420940867,1776763832472,-300.0,0.00010336,2]
[420940869,1776763832481,-300.0,0.00010336,2]
[420940871,1776763832491,-300.0,0.00010336,2]
[420940873,1776763832500,-300.0,0.00010336,2]
[420940875,1776763832510,-300.0,0.00010336,2]
[420940877,1776763832519,-300.0,0.00010336,2]
[420940879,1776763832528,-300.0,0.00010336,2]
[420940881,1776763832538,-300.0,0.00010336,2]
[420940883,1776763832549,-300.0,0.00010336,2]
[420940884,1776763832557,-300.0,0.00010336,2]
[420940886,1776763832567,-300.0,0.00010336,2]
[420940888,1776763832576,-300.0,0.00010336,2]
[420940890,1776763832585,-151.0,0.00010619,2]
[420940892,1776763832594,-1028.0,0.00010695,2]
[420940894,1776763832603,-420.0,0.00010696,2]
[420940896,1776763832612,-2501.7289033,0.0001081,2]
[420940898,1776763832621,-1780.32403635,0.00010896,2]
[420940900,1776763832630,-3955.98142338,0.00010996,2]
[420940902,1776763832639,-562.87859962,0.0001106,2]
[420940904,1776763832648,-3873.74761677,0.00011096,2]
[420940934,1776763838766,-489.53289173,0.00011096,2]
[420940935,1776763838775,-1262.20387652,0.00011196,2]
[420940936,1776763838877,-3111.86825972,0.00011196,2]
[420940937,1776763838886,-458.322,0.00011196,2]
[420940938,1776763838895,-600.0,0.00011215,2]
[420940939,1776763838905,-500.0,0.00011448,2]
[420940940,1776763838914,-500.0,0.00011448,2]
[420940941,1776763838924,-500.0,0.00011448,2]
[420940942,1776763838933,-500.0,0.00011448,2]
[420940943,1776763838942,-551.48934394,0.00011448,2]
[420940944,1776763838951,-5628.34427513,0.00011449,2]
[420940945,1776763838960,-296.34750976,0.00011532,2]
[420940946,1776763838969,-587.0,0.00011766,2]
[420940947,1776763838982,-1785.7351872,0.00011908,2]
[420940948,1776763838991,-869.30752192,0.00011972,2]
[420940949,1776763839000,-869.30752192,0.00011972,2]
[420940950,1776763839010,-869.30752192,0.00011972,2]
[420940951,1776763839020,-869.30752192,0.00011972,2]
[420940952,1776763839029,-869.30752192,0.00011972,2]
[420940953,1776763839038,-869.30752192,0.00011972,2]
[420940954,1776763839047,-869.30752192,0.00011972,2]
[420940955,1776763839056,-869.30752192,0.00011972,2]
[420940956,1776763839065,-869.30752192,0.00011972,2]
[420940957,1776763839074,-869.30752192,0.00011972,2]
[420940958,1776763839083,-869.30752192,0.00011972,2]
[420940959,1776763839092,-869.30752192,0.00011972,2]
[420940960,1776763839101,-869.30752192,0.00011972,2]
[420940961,1776763839110,-869.30752192,0.00011972,2]
[420940962,1776763839120,-869.30752192,0.00011972,2]
[420940963,1776763839129,-869.30752192,0.00011972,2]
[420940964,1776763839138,-869.30752192,0.00011972,2]
[420940965,1776763839148,-869.30752192,0.00011972,2]
[420940966,1776763839157,-886.69367235,0.00011972,2]
[420940967,1776763839167,-886.69367235,0.00011972,2]
[420940968,1776763839176,-886.69367235,0.00011972,2]
[420940969,1776763839185,-886.69367235,0.00011972,2]
[420940970,1776763839195,-886.69367235,0.00011972,2]
[420940971,1776763839205,-886.69367235,0.00011972,2]
[420940972,1776763839214,-886.69367235,0.00011972,2]
[420940973,1776763839224,-886.69367235,0.00011972,2]
[420940974,1776763839233,-886.69367235,0.00011972,2]
[420940975,1776763839242,-22857.23165362,0.00011973,2]
[420940983,1776763840865,-76351.50000001,0.00011973,2]
[420940999,1776763843545,-48193.98964295,0.00011973,2]
[420941000,1776763843601,-478.55877297,0.00011973,2]
[420941003,1776763846506,-1699.29526093,0.00011973,2]
[420941004,1776763846723,-32543.61533202,0.00011973,2]
[420941005,1776763846735,-83516.41365799,0.00011973,2]
[420941006,1776763900273,-384.768375,0.00011505,2]
[420941018,1776764270714,24000.0,0.00024658,120]
[420941066,1776765032567,-384.768375,9.667e-05,10]
[420941173,1776765039077,-4615.231625,9.667e-05,10]
[420941175,1776765039086,-1200.0,9.764e-05,2]
[420941177,1776765039096,-557.0,9.764e-05,2]
[420941179,1776765039105,-4615.231625,9.765e-05,10]
[420941181,1776765039114,-300.0,9.961e-05,2]
[420941183,1776765039124,-300.0,9.961e-05,2]
[420941185,1776765039133,-300.0,9.961e-05,2]
[420941187,1776765039142,-300.0,9.963e-05,2]
[420941189,1776765039152,-741.02711616,9.964e-05,2]
[420941191,1776765039162,-260.59216808,9.964e-05,2]
[420941193,1776765039171,-569.4649715,0.00010178,2]
[420941195,1776765039180,-10297.6124465,0.00010485,2]
[420941197,1776765039189,-12497.10324686,0.00010486,2]
[420941199,1776765039199,-1680.0,0.0001074,2]
[420941201,1776765039208,-206.85234461,0.00010859,2]
[420941203,1776765039216,-500.0,0.00010956,2]
[420941205,1776765039226,-513.05949585,0.00010956,2]
[420941206,1776765039235,-500.0,0.00010956,2]
[420941208,1776765039244,-500.0,0.00010956,2]
[420941210,1776765039253,-252.08080158,0.00010956,2]
[420941213,1776765039265,-247.91919842,0.00010956,2]
[420941215,1776765039274,-500.0,0.00010956,2]
[420941217,1776765039283,-500.0,0.00010956,2]
[420941218,1776765039292,-500.0,0.00010956,2]
[420941220,1776765039301,-420.54485633,0.00010956,2]
[420941222,1776765039310,-500.0,0.00010956,2]
[420941224,1776765039320,-500.0,0.00010956,2]
[420941226,1776765039329,-500.0,0.00010956,2]
[420941228,1776765039338,-500.0,0.00010956,2]
[420941230,1776765039348,-500.0,0.00010956,2]
[420941232,1776765039358,-500.0,0.00010956,2]
[420941234,1776765039367,-500.0,0.00010956,2]
[420941236,1776765039377,-500.0,0.00010956,2]
[420941238,1776765039386,-500.0,0.00010956,2]
[420941240,1776765039396,-500.0,0.00010956,2]
[420941242,1776765039405,-335.17441603,0.00010956,2]
[420941245,1776765039423,-168.00921385,0.00010956,2]
[420941247,1776765039432,-182.65225118,0.00010956,2]
[420941382,1776765040973,-317.34774882,0.00010956,2]
[420941384,1776765040983,-500.0,0.00010956,2]
[420941385,1776765040992,-500.0,0.00010956,2]
[420941387,1776765041001,-200.0,0.00010956,2]
[420941389,1776765041011,-500.0,0.00010956,2]
[420941391,1776765041020,-500.0,0.00010956,2]
[420941393,1776765041029,-500.0,0.00010956,2]
[420941395,1776765041038,-500.0,0.00010956,2]
[420941397,1776765041047,-500.0,0.00010956,2]
[420941399,1776765041056,-164.77337687,0.00010956,2]
[420941503,1776765043625,-26.94756393,0.00010956,2]
[420941504,1776765043660,-308.2790592,0.00010956,2]
[420941505,1776765043669,-500.0,0.00010956,2]
[420941506,1776765043679,-500.0,0.00010956,2]
[420941507,1776765043688,-500.0,0.00010956,2]
[420941508,1776765043697,-500.0,0.00010956,2]
[420941509,1776765043706,-147.10463214,0.00010956,2]
[420941515,1776765046679,-352.89536786,0.00010956,2]
[420941516,1776765046689,-500.0,0.00010956,2]
[420941517,1776765046698,-500.0,0.00010956,2]
[420941518,1776765046707,-500.0,0.00010956,2]
[420941519,1776765046717,-500.0,0.00010956,2]
[420941520,1776765046726,-500.0,0.00010956,2]
[420941521,1776765046736,-500.0,0.00010956,2]
[420941522,1776765046745,-500.0,0.00010956,2]
[420941523,1776765046754,-279.91176926,0.00010956,2]
[420941524,1776765046838,-220.08823074,0.00010956,2]
[420941525,1776765046847,-500.0,0.00010956,2]
[420941526,1776765046856,-500.0,0.00010956,2]
[420941527,1776765046866,-500.0,0.00010956,2]
[420941528,1776765046875,-500.0,0.00010956,2]
[420941529,1776765046884,-500.0,0.00010956,2]
[420941530,1776765046894,-500.0,0.00010956,2]
[420941531,1776765046903,-354.12916246,0.00010956,2]
[420941532,1776765046912,-626.81227116,0.00010956,2]
[420941533,1776765046922,-500.0,0.00010956,2]
[420941534,1776765046931,-500.0,0.00010956,2]
[420941535,1776765046940,-500.0,0.00010956,2]
[420941536,1776765046949,-500.0,0.00010956,2]
[420941537,1776765046959,-500.0,0.00010956,2]
[420941538,1776765046969,-500.0,0.00010956,2]
[420941539,1776765046978,-500.0,0.00010956,2]
[420941540,1776765046988,-420.0,0.00010957,2]
[420941541,1776765046997,-500.0,0.00010958,2]
[420941542,1776765047007,-15380.3736,0.00010959,2]
[420941543,1776765047016,-420.0,0.00010959,2]
[420941544,1776765047025,-206.8523446,0.00011063,2]
[420941545,1776765047035,-206.8523446,0.00011266,2]
[420941546,1776765047045,-206.8523446,0.0001147,2]
[420941547,1776765047054,-206.8523446,0.00011673,2]
[420941548,1776765047063,-353.14638337,0.00011768,2]
[420941549,1776765047072,-781.87677403,0.00011768,2]
[420941550,1776765047082,-781.87677403,0.00011768,2]
[420941551,1776765047091,-781.87677403,0.00011768,2]
[420941553,1776765047273,-781.87677403,0.00011768,2]
[420941554,1776765047286,-781.87677403,0.00011768,2]
[420941556,1776765047296,-781.87677403,0.00011768,2]
[420941558,1776765047305,-781.87677403,0.00011768,2]
[420941560,1776765047315,-781.87677403,0.00011768,2]
[420941562,1776765047325,-781.87677403,0.00011768,2]
[420941564,1776765047334,-781.87677403,0.00011768,2]
[420941566,1776765047344,-781.87677403,0.00011768,2]
[420941568,1776765047353,-781.87677403,0.00011768,2]
[420941569,1776765047363,-781.87677403,0.00011768,2]
[420941571,1776765047373,-781.87677403,0.00011768,2]
[420941572,1776765047382,-781.87677403,0.00011768,2]
[420941573,1776765047392,-781.87677403,0.00011768,2]
[420941574,1776765047401,-781.87677403,0.00011768,2]
[420941575,1776765047410,-781.87677403,0.00011768,2]
[420941576,1776765047420,-781.87677403,0.00011768,2]
[420941577,1776765047429,-781.87677403,0.00011768,2]
[420941578,1776765047439,-118155.35163829,0.0001177,2]
[420941579,1776765047450,-12165.91081464,0.0001177,2]
[420941580,1776765047461,-1526.0194078,0.0001177,2]
[420941581,1776765047473,-569.37999998,0.0001177,2]
[420941582,1776765047484,-907.88036448,0.0001177,2]
[420941585,1776765661906,-1311.47993469,7.6e-05,2]
[420941586,1776765697664,-2948.2630754,0.00010628,2]
[420941588,1776765726915,-1311.47993469,0.00010628,2]
[420941589,1776765756993,330.55,0.00025926,120]
[420941777,1776766237960,-5000.0,0.00010447,10]
[420941778,1776766237970,-269.83825339,0.00010553,2]
[420941779,1776766237979,-568.0,0.00010553,2]
[420941780,1776766237989,-717.45548602,0.00010606,2]
[420941781,1776766237999,-352.0,0.00010705,2]
[420941782,1776766238009,-1367.73102825,0.00010706,2]
[420941783,1776766238019,-500.0,0.00010735,2]
[420941784,1776766238029,-300.0,0.00010757,2]
[420941785,1776766238039,-8725.9487345,0.00010759,2]
[420941786,1776766238049,-2018.00657048,0.00010806,2]
[420941787,1776766238059,-2668.28211271,0.00011006,2]
[420941788,1776766238068,-209.77461313,0.00011051,2]
[420941789,1776766238078,-2769.54448752,0.00011106,2]
[420941790,1776766238088,-3193.39080433,0.00011206,2]
[420941791,1776766238098,-3318.55765494,0.00011306,2]
[420941792,1776766238107,-838.66735747,0.00011373,2]
[420941793,1776766238117,-3351.31476047,0.00011373,2]
[420941794,1776766238127,-704.26970567,0.00011373,2]
[420941795,1776766238136,-2814.26174385,0.00011373,2]
[420941796,1776766238146,-3617.23712114,0.00011406,2]
[420941797,1776766238155,-500.0,0.00011603,2]
[420941798,1776766238164,-500.0,0.00011603,2]
[420941799,1776766238174,-500.0,0.00011603,2]
[420941800,1776766238183,-500.0,0.00011603,2]
[420941801,1776766238193,-500.0,0.00011603,2]
[420941802,1776766238203,-500.0,0.00011603,2]
[420941803,1776766238212,-500.0,0.00011603,2]
[420941804,1776766238221,-469.88257984,0.00011603,2]
[420941805,1776766238230,-500.0,0.00011603,2]
[420941806,1776766238240,-500.0,0.00011603,2]
[420941807,1776766238249,-500.0,0.00011603,2]
[420941808,1776766238259,-500.0,0.00011603,2]
[420941809,1776766238268,-500.0,0.00011603,2]
[420941810,1776766238278,-500.0,0.00011603,2]
[420941811,1776766238288,-489.4994513,0.00011603,2]
[420941812,1776766238299,-500.0,0.00011603,2]
[420941813,1776766238309,-500.0,0.00011603,2]
[420941814,1776766238318,-500.0,0.00011603,2]
[420941815,1776766238328,-500.0,0.00011603,2]
[420941816,1776766238338,-500.0,0.00011603,2]
[420941817,1776766238347,-500.0,0.00011603,2]
[420941818,1776766238356,-500.0,0.00011603,2]
[420941819,1776766238366,-500.0,0.00011603,2]
[420941820,1776766238376,-500.0,0.00011603,2]
[420941821,1776766238386,-500.0,0.00011603,2]
[420941822,1776766238395,-500.0,0.00011603,2]
[420941823,1776766238404,-500.0,0.00011603,2]
[420941824,1776766238414,-201.19406841,0.00011603,2]
[420941825,1776766238425,-500.0,0.00011603,2]
[420941826,1776766238434,-500.0,0.00011603,2]
[420941827,1776766238444,-500.0,0.00011603,2]
[420941828,1776766238454,-500.0,0.00011603,2]
[420941829,1776766238463,-500.0,0.00011603,2]
[420941830,1776766238473,-500.0,0.00011603,2]
[420941831,1776766238482,-500.0,0.00011603,2]
[420941832,1776766238493,-500.0,0.00011603,2]
[420941833,1776766238502,-500.0,0.00011603,2]
[420941834,1776766238511,-500.0,0.00011603,2]
[420941835,1776766238520,-500.0,0.00011603,2]
[420941836,1776766238530,-500.0,0.00011603,2]
[420941837,1776766238539,-500.0,0.00011603,2]
[420941838,1776766238549,-500.0,0.00011603,2]
[420941839,1776766238558,-500.0,0.00011603,2]
[420941840,1776766238567,-500.0,0.00011603,2]
[420941841,1776766238577,-500.0,0.00011603,2]
[420941842,1776766238586,-500.0,0.00011603,2]
[420941843,1776766238595,-500.0,0.00011603,2]
[420941844,1776766238605,-500.0,0.00011603,2]
[420941845,1776766238614,-500.0,0.00011603,2]
[420941846,1776766238624,-500.0,0.00011603,2]
[420941847,1776766238633,-500.0,0.00011603,2]
[420941848,1776766238643,-500.0,0.00011603,2]
[420941849,1776766238654,-500.0,0.00011603,2]